Cogmind - Beta 14 @@@ ROGUE MODE // 2024.11.09 @ 12:09:12 Player: Fangrelle Result: Destroyed by WO-MFE(R) with Subdweller Machine Gun Performance ------------- Evolutions (0) 0 Regions Visited (3) 600 Robots Destroyed (64) 320 Value Destroyed (1462) 1462 Prototype IDs (13) 260 Alien Tech Used (0) 0 Bonus (-21) -21 TOTAL SCORE: 2621 Bonus ------- Follower Combat Kills 143 Friendly Fire -164 Cogmind --------- Core Integrity 0/250 Matter 8/300 Energy 99/100 System Corruption 1% Temperature Cool (0) Movement Rolling (120) Ox1 Location -10/Subcaves Parts ------- > --- POWER (1) -------- (None) > --- PROPULSION (2) --- Subdweller Monowheel > --- UTILITY (2) ------ Medium Storage Unit Hardened Light Armor Plating > --- WEAPON (2) ------- Mini Grenade Launcher Subdweller Shrapnel Launcher > --- INVENTORY (10) --- Improved Targeting Computer Improved Targeting Computer Hardened Light Armor Plating Tower Shield Hacking Suite Cobbler Unit Shotgun Datajack Peak State ------------ > --- POWER ------------ Light Angular Momentum Engine > --- PROPULSION ------- Light Treads Spiked Treads > --- UTILITY ---------- Medium Storage Unit Hardened Light Armor Plating > --- WEAPON ----------- Shotgun Shotgun > --- INVENTORY -------- Machine Analyzer Improved Targeting Computer Improved Targeting Computer Hardened Light Armor Plating Hardened Light Armor Plating Hacking Suite Shotgun Mini Grenade Launcher Mini Grenade Launcher Datajack [Rating: 17] Favorites ----------- Power Light Angular Momentum Engine Engine Light Angular Momentum Engine Propulsion Light Treads Treads Light Treads Wheel Subdweller Monowheel Utility Medium Storage Unit Storage Medium Storage Unit Processor Improved Targeting Computer Protection Hardened Light Armor Plating Weapon Shotgun Energy Gun Medium Laser Energy Cannon Subdweller Beam Cannon Ballistic Gun Shotgun Launcher Mini Grenade Launcher Build | -11 -10 -10 -10 ------- Run | Yrd Mat Min Sub Slots Evolved . | . . . . Power . | . . . . Propulsion . | . . . . Utility . | . . . . Weapon . | . . . . Parts Attached 31 | 7 11 1 12 Power 5 | 1 3 . 1 Engine 5 | 1 3 . 1 Core . | . . . . Reactor . | . . . . Propulsion 6 | 2 . 1 3 Treads 4 | 2 . . 2 Leg . | . . . . Wheel 2 | . . 1 1 Hover . | . . . . Flight . | . . . . Utility 5 | 1 3 . 1 Device . | . . . . Storage 2 | 1 1 . . Processor 1 | . 1 . . Hackware . | . . . . Protection 2 | . 1 . 1 Artifact . | . . . . Weapon 15 | 3 5 . 7 Energy Gun 1 | 1 . . . Energy Cannon 1 | . . . 1 Ballistic Gun 8 | 2 5 . 1 Ballistic Cannon . | . . . . Launcher 5 | . . . 5 Special Weapon . | . . . . Impact Weapon . | . . . . Slashing Weapon . | . . . . Piercing Weapon . | . . . . Special Melee Weapon . | . . . . Unidentified Prototypes . | . . . . Parts Lost 6 | . 2 . 4 Power 1 | . . . 1 Propulsion 3 | . 1 . 2 Utility 1 | . . . 1 Weapon 1 | . 1 . . Highest Loss Streak 2 | . 1 . 2 To Critical Strikes . | . . . . Average Slot Usage (%) 82 | . 96 86 76 Engine 13 | . 14 14 12 Treads 10 | . 24 14 5 Wheel 1 | . . 1 2 Storage 14 | . 14 14 14 Processor 2 | . 11 . . Protection 11 | . 2 14 13 Ballistic Gun 14 | . 27 28 6 Launcher 13 | . . . 20 Peak Build Rating 17 | 6 12 12 17 Average Rating 13 | 4 11 11 14 On Entrance 7 | . 6 11 12 Naked Turns . | . . . . Heaviest Build 33 | 12 26 26 33 Greatest Support 40 | 40 40 20 40 Greatest Overweight (x) 9 | 3 1 1 9 Average Overweight (x) 2 | . . 1 3 Largest Inventory Capacity 10 | 8 10 10 10 Average Capacity 9 | 7 9 10 10 Most Carried 10 | 3 10 10 10 Average Carried 9 | 1 9 10 9 Final Capacity 10 | 8 10 10 10 Final Carried 10 | 2 10 10 10 Class Distribution -------------------- 100% | Mutant Dominant Class ---------------- Mutant | -10/Materials Mutant | -10/Mines Mutant | -10/Subcaves Resources | -11 -10 -10 -10 ----------- Run | Yrd Mat Min Sub Matter Collected 1732 | 234 543 283 672 Remotely . | . . . . Salvage Created 1746 | . 876 376 494 Parts 135 | . 72 33 30 Haulers Intercepted 1 | . 1 . . Recyclers Shooed . | . . . . Parts Field Recycled . | . . . . Retrieved Matter . | . . . . Parts Self-Destructed 9 | . . . 9 Prevented . | . . . . Kills | -11 -10 -10 -10 ------- Run | Yrd Mat Min Sub Combat Hostiles Destroyed 47 | . 20 8 19 Guns 31 | . 20 8 3 AOE 16 | . . . 16 Classes Destroyed 13 | . 8 2 3 Worker 3 | . 2 1 . Builder 1 | . . 1 . Tunneler 2 | . . 2 . Hauler 1 | . 1 . . Recycler 3 | . 1 2 . Mechanic 1 | . 1 . . Operator 2 | . 2 . . Watcher 3 | . 3 . . Swarmer 16 | . 3 7 6 Grunt 20 | . 17 1 2 Sentry 1 | . . . 1 Cobbler 1 | . . . 1 Subdweller 11 | . . . 11 Best Kill Streak 10 | . 10 2 3 Combat Bots Only 7 | . 7 2 3 Max Kills in Single Turn 2 | . 2 2 2 Gunslinging 1 | . 1 1 . Exploded 2 | . . . 2 Melee . | . . . . Uniques/NPCs Destroyed . | . . . . Combat | -11 -10 -10 -10 -------- Run | Yrd Mat Min Sub Hostile Shots Fired 155 | . 64 34 57 Missed 44 | . 15 7 22 Damage Taken 1761 | . 582 264 915 Core 256 | . 28 40 188 Absorbed by Shields . | . . . . Core Remaining (%) 100 | 100 . . . Volleys Fired 142 | . 58 20 64 Largest 2 | . 2 2 2 Hottest 80 | . 46 46 80 Shots Fired 246 | . 116 40 90 Gun 185 | . 116 40 29 Cannon 2 | . . . 2 Launcher 59 | . . . 59 Special . | . . . . Kinetic 189 | . 116 40 33 Thermal 2 | . . . 2 Explosive 55 | . . . 55 Electromagnetic . | . . . . Robot Hit Streak 11 | . 11 5 8 Robot Miss Streak 5 | . 3 5 3 Penetration Max . | . . . . Secondary Targets 6 | . 4 2 . Max Gunslinging Chain 1 | . 1 1 . Shots Hit Robots 154 | . 91 28 35 Core Hits 107 | . 56 16 35 Critical Kills 2 | . 1 . 1 Critical Parts Destroyed . | . . . . Critical Strikes 4 | . 1 . 3 Destroy 4 | . 1 . 3 Melee Attacks . | . . . . Impact . | . . . . Slashing . | . . . . Piercing . | . . . . Sneak Attacks . | . . . . Combat Hostiles . | . . . . Follow-up Attacks . | . . . . Damage Inflicted 3936 | . 1566 399 1971 Guns 2101 | . 1443 399 259 Cannons . | . . . . Explosions 1835 | . 123 . 1712 Melee . | . . . . Ramming . | . . . . Kinetic 2298 | . 1443 399 456 Thermal 123 | . 123 . . Explosive 1515 | . . . 1515 Electromagnetic . | . . . . Impact . | . . . . Slashing . | . . . . Piercing . | . . . . Highest Corruption 1 | . 1 1 1 Average Corruption 1 | . 1 1 1 Corruption Purged . | . . . . Corruption Blocked . | . . . . Effects 61 | . 12 6 43 Message Errors 13 | . 1 1 11 Matter Fused 24 | . 6 2 16 Heat Flow Errors 6 | . 2 1 3 Energy Discharges 9 | . . 1 8 Data Loss (minor) 1 | . 1 . . Data Loss (major) 2 | . . . 2 Misfires 4 | . 2 . 2 Alerts 2 | . . 1 1 Overload Shots . | . . . . Overflow Damage 72 | . 8 . 64 Projectiles . | . . . . Explosions 72 | . 8 . 64 Melee . | . . . . Knockbacks . | . . . . Impact . | . . . . Kinetic . | . . . . Secondary . | . . . . Self-Inflicted Damage 131 | . . . 131 Shots 6 | . . . 6 Rammed . | . . . . Targets Rammed . | . . . . Kicked . | . . . . Crushed . | . . . . Highest Temperature 216 | . 156 129 216 Average Temperature 38 | . 25 41 71 Received Heat Transfer 372 | . 279 48 45 Siege Activations . | . . . . Robots Corrupted . | . . . . Combat Hostiles . | . . . . Parts Fried . | . . . . Impact Corruptions . | . . . . Robots Melted . | . . . . Combat Hostiles . | . . . . Parts Melted . | . . . . Heat Transferred 100 | . 100 . . Parts Sabotaged . | . . . . Parts Stolen . | . . . . Parts Stripped . | . . . . Power Chain Reactions . | . . . . Alert | -11 -10 -10 -10 ------- Run | Yrd Mat Min Sub Peak Influence 321 | . 321 208 . Initial 46 | . . 46 . Average 104 | . 148 60 . Maximum Alert Level 1 | . 1 1 . Low Security (%) 86 | 100 75 99 . Level 1 13 | . 24 . . Level 2 . | . . . . Level 3 . | . . . . Level 4 . | . . . . Level 5 . | . . . . High Security . | . . . . Max Security . | . . . . Squads Dispatched 6 | . 6 . . Investigation 4 | . 4 . . Extermination . | . . . . Reinforcement 2 | . 2 . . Assault . | . . . . Garrison . | . . . . Intercept . | . . . . Searches Triggered . | . . . . Construction Impeded . | . . . . Haulers Reinforced . | . . . . Active Scanning Responses . | . . . . Cargo Convoy Interrupts . | . . . . Stealth | -11 -10 -10 -10 --------- Run | Yrd Mat Min Sub Distress Signals 4 | . 4 . . Communications Jammed . | . . . . Distress Signals . | . . . . Times Spotted 67 | . 29 17 21 Peak Tracking Total 7 | . 7 3 3 Tactical Retreats 3 | . 1 . 2 Traps | -11 -10 -10 -10 ------- Run | Yrd Mat Min Sub Traps Triggered 6 | . 3 . 3 Indirectly . | . . . . Trap Hack Attempts . | . . . . Triggered . | . . . . Disarmed . | . . . . Reprogrammed . | . . . . Reused . | . . . . Traps Extracted . | . . . . Installed . | . . . . Triggered . | . . . . Machines | -11 -10 -10 -10 ---------- Run | Yrd Mat Min Sub Machines Disabled 5 | . 1 . 4 Max in Single Turn 2 | . 1 . 2 Machines Repaired . | . . . . Machines Dismantled . | . . . . Machines Sabotaged . | . . . . Overloaded Fab Kills . | . . . . Hacking | -11 -10 -10 -10 --------- Run | Yrd Mat Min Sub Machines Accessed 9 | . 8 . 1 Terminals 6 | . 6 . . Fabricators . | . . . . Repair Stations . | . . . . Recycling Units 2 | . 2 . . Scanalyzers . | . . . . Garrison Access . | . . . . Total Hacks 40 | . 31 . 9 Successful 24 | . 15 . 9 Failed 16 | . 16 . . Catastrophic . | . . . . Database Lockouts . | . . . . Manual 28 | . 28 . . Terminals 28 | . 28 . . Fabricators . | . . . . Repair Stations . | . . . . Recycling Units 3 | . 3 . . Scanalyzers . | . . . . Garrison Access . | . . . . Terminal Hacks 14 | . 5 . 9 Record 8 | . . . 8 Robot Analysis 1 | . 1 . . Prototype ID Bank 1 | . 1 . . Terminal Index 1 | . 1 . . Security Status 1 | . 1 . . Zone Layout 1 | . 1 . . Derelict Proto ID Bank 1 | . . . 1 Fabricator Hacks . | . . . . Repair Station Hacks . | . . . . Recycling Unit Hacks . | . . . . Scanalyzer . | . . . . Garrison Access Hacks . | . . . . Unauthorized Hacks 10 | . 10 . . Terminals 9 | . 9 . . Assimilate 2 | . 2 . . Botnet 6 | . 6 . . Operators 1 | . 1 . . Fabricators . | . . . . Repair Stations . | . . . . Recycling Units 1 | . 1 . . Tunnel 1 | . 1 . . Scanalyzers . | . . . . Garrison Access . | . . . . Data Cores Recovered . | . . . . Used . | . . . . Hacking Detections 6 | . 6 . . Full Trace Events 2 | . 2 . . Feedback Events . | . . . . Feedback Blocked . | . . . . Robot Schematics Acquired . | . . . . Robots Built . | . . . . Authchips . | . . . . Time . | . . . . Total Robot Build Rating . | . . . . Part Schematics Acquired . | . . . . Parts Built . | . . . . Authchips . | . . . . Time . | . . . . Total Part Build Rating . | . . . . Parts Repaired . | . . . . Time . | . . . . Parts Recycled . | . . . . Recycled Matter . | . . . . Retrieved Matter . | . . . . Retrieved Components . | . . . . Parts Scanalyzed . | . . . . Part Schematics Acquired . | . . . . Parts Damaged . | . . . . Bothacking | -11 -10 -10 -10 ------------ Run | Yrd Mat Min Sub Used RIF Installer . | . . . . Robots Hacked . | . . . . Non-combat . | . . . . Combat . | . . . . Robot Hacks Applied . | . . . . Relay Couplers Released . | . . . . Fabnet Peak Effective % . | . . . . Robots Rewired . | . . . . Allies Hacked . | . . . . Hacks Repelled . | . . . . Allies | -11 -10 -10 -10 -------- Run | Yrd Mat Min Sub Total Allies 4 | . . 4 . Largest Group 3 | . . 3 2 Highest-Rated Group 47 | . . 47 47 Highest-Rated Ally 31 | . . 31 31 Total Orders . | . . . . Ally Attacks 53 | . . 36 17 Total Damage 562 | . . 358 204 Kills 8 | . . 7 1 Allies Corrupted . | . . . . Allies Melted . | . . . . Intel | -11 -10 -10 -10 ------- Run | Yrd Mat Min Sub Robot Analysis Total 1 | . 1 . . Derelict Logs Recovered 2 | . . 1 1 Drone Launches . | . . . . Drone Recoveries . | . . . . Exploration | -11 -10 -10 -10 ------------- Run | Yrd Mat Min Sub Turns Passed 10163 | 89 1923 1659 6492 Spaces Moved 3673 | 53 954 732 1934 Core 737 | 16 . . 721 Treads 2354 | 37 954 567 796 Legs . | . . . . Wheels 582 | . . 165 417 Hover . | . . . . Flight . | . . . . Fastest Speed 50 | 50 160 115 110 Average Speed 245 | 145 176 211 295 Slowest Speed 500 | 200 240 240 500 Overloaded Moves . | . . . . Propulsion Burnouts . | . . . . Robots Hopped . | . . . . Cave-ins Triggered . | . . . . Exploration Rate (%) 72 | 4 98 98 89 Regions Visited 3 Branch Regions 2 Pre-discovered Areas 4 | . 1 2 1 Known Exits Taken . | . . . . Unknown Exits Taken 3 | 1 1 1 . Scrap Searched 4 | . . 1 3 Spaces Dug 14 | . . . 14 Terrain Destroyed 343 | . 11 . 332 Melee . | . . . . Projectile . | . . . . AOE 343 | . 11 . 332 Terrain Rammed . | . . . . Walls Destroyed . | . . . . Machines Disabled . | . . . . Actions | -11 -10 -10 -10 --------- Run | Yrd Mat Min Sub Total 4565 | 62 1091 800 2612 Wait 675 | . 37 48 590 Move 3670 | 52 953 731 1934 Hop . | . . . . Pick Up 21 | 2 16 . 3 Fast Attach 14 | 6 3 1 4 Attach 4 | 1 2 . 1 Detach 2 | 1 1 . . Swap 13 | . 6 . 7 Drop 24 | . 15 . 9 Fire 142 | . 58 20 64 Melee . | . . . . Ram . | . . . . Kick . | . . . . Crush . | . . . . Escape Stasis . | . . . . Rewire . | . . . . Trap . | . . . . Miscellaneous . | . . . . Route ------- -11/Scrapyard -10/Materials (discovered 4 exits: [*Mat x3] / [*Min]) -10/Mines (discovered 3 exits: [*Mat x2] / *Sub) -10/Subcaves (discovered 2 exits: [*Mat x2]) History --------- Turn | Location | Event 21 | -11/Scrapyard | Discovered new exit (range 15) 90 | -11/Scrapyard | Entered Materials 316 | -10/Materials | Build established: Mutant 335 | -10/Materials | Destroyed 7 combat bots 683 | -10/Materials | Discovered new exit (range 5) 987 | -10/Materials | Discovered new exit (range 4) 1148 | -10/Materials | Discovered new exit (range 14) 1498 | -10/Materials | Discovered new exit (range 11) 2013 | -10/Materials | Entered Mines 2066 | -10/Mines | Assisted by bots powering up and referring to "LRC-V3" 2351 | -10/Mines | Discovered new exit (range 6) 2411 | -10/Mines | Learned location of Mines (-8) 3062 | -10/Mines | Escorted by a lone wolf Derelict 3082 | -10/Mines | Learned location of Storage (-8) 3216 | -10/Mines | Discovered new exit (range 8) 3581 | -10/Mines | Discovered new exit (range 6) 3672 | -10/Mines | Entered Subcaves 3672 | -10/Subcaves | Accompanied by 2 allies 3951 | -10/Subcaves | Discovered new exit (range 7) 4478 | -10/Subcaves | Visited 4L-MR0's lab 4911 | -10/Subcaves | Found Tower Shield 4964 | -10/Subcaves | Discovered new exit (range 13) 5434 | -10/Subcaves | A swath of the cavern ceiling suddenly collapsed 5614 | -10/Subcaves | Core integrity fell below 50% 9220 | -10/Subcaves | Ambushed by Subdweller buried in earth 9434 | -10/Subcaves | Core integrity fell below 20% 9814 | -10/Subcaves | Shifting Twisted Machinery released Sub. Beam Cannon 9815 | -10/Subcaves | Shifting Twisted Machinery released Sub. Shrapnel Launcher 10164 | -10/Subcaves | Destroyed by WO-MFE(R) with Subdweller Machine Gun Last Messages --------------- 09806_ &WJS9QEWS Sub. Beam Cannon falls loose from the Twisted Machinery. Sub. Shrapnel Launcher falls loose from the Twisted Machinery. 09819_ Acquired 15 matter. 09823_ Dropped Mni. Grenade Launcher. 09824_ Acquired Sub. Shrapnel Launcher. 09825_ Triggered Piercing Trap. 09825_ Spikes shoot up from the floor. 09825_ Critical hit (Impale). 09828_ Acquired 13 matter. 09828_ Triggered Piercing Trap. 09828_ Spikes shoot up from the floor. 09829_ Subatomizers dissect the Mni. Grenade Launcher. 09892_ Subatomizers dissect the Mni. Grenade Launcher, destroying it. 09907_ L=J OSF A7>HW/JXKL>CCOU 10109_ Acquired 16 matter. 10112_ Acquired 66 matter. C6-9XK(R) emerges from concealment. 10136_ Acquired 8 matter. Map ----- +----------------------------------------------------+ | ???????????????## #?????????????????????? | | ???????????????# ##?????????????????????? | | ???????????????# ###????????????????????? | | ???????????????# ### #????????????????????? | | ???????????????# #### #????????????????????? | | ???????????????# ### #????????????????????? | | ???????????##### ## ##????##?####?????????? | | ???????????# #????" # # #????????? | | ???????????# ##??? ##??????? | | ???????????# ##########???? #??????? | | ???????????# #?????????????" ?####?? | | ???????????## ##????????????? # ##? | | ????????????#### ##?????????????? # #? | | ?????????????### #??????????????? #? | | ?????????????# ########????????? ## | | ????????????## #?????????? # | | ????????????# # ##### #??????????? %#? | | ????????????# # ##???# #######??????# #? | | ????????????## #????# ######## #? | | ?????????????## #????# ## #? | | ?????????????# ## #??### # # #? | | ?????????????##?## #### # ###??# #? | | ?????????????????# ### #""#"#"#"#??????#? | | ?????????????????####### """""####???????? | | ???????????????????###?# ^ #????????? | | ??????????????????## ### @ ###### ## #????????? | | ?????????????????## ^ ^##??# #????????? | | ????????????????## ^ ^ ^##?#" # ??????? | | ???????????????## ^^ ^ ####" % ????? | | ???????????????# #### "####" "" ##???? | | ???????????????# ^#??## ""##### """ ##????? | | ???????????????## R ##???# ^^"#???"" ###?????? | | ?????????????### R####????### "]##???"###???????? | | ?????????????# # #?????????######????##?????????? | | ???????####### ##?????????????????????????????? | | ??????## "## #?????????????????????????????? | | ??????#" # #" " "#?????????????????????????????? | | ??????# # " "#?????????????????????????????? | | ??????# "# #" " " #????????????????????????????? | | ??????# #### "" #????????????????????????????? | | ??????###??#" ""##????????????????????????????? | | ???????????# #?????????????????????????????? | | ???????????# "?????????????????????????????? | | ???????????# ?????????????????????????????? | | ???????????# ?????????????????????????????? | | ???????????# ?????????????????????????????? | | ???????????# ?????????????????????????????? | | ???????????#" ####?????????????????????####? | | ???????????## # ##??????????###?????? ## | | ????????????? # ##???????### ##???? # | +----------------------------------------------------+ Best States ------------- Heat Dissipation 25 Energy Generation 18 Energy Capacity 250 Matter Stores 300 Matter Capacity 300 Sight Range 16 Terrain Scan Density 10 Armor Coverage 150 Evasion (%) 50 Targeting Accuracy 6 Recoil Reduction 2 Item Schematics ----------------- None Robot Schematics ------------------ None Fabricated ------------ Nothing Alien Tech Used ----------------- None Achievements -------------- None Challenges ------------ None Game ------ Seed ChipDeliveryLegs Manual? 0 Play Time 00:32:54 Cumulative 31.1 hours Start 2024.11.09 @ 11:39:52 End 2024.11.09 @ 12:09:12 Sessions 1 Manual Loads 0 Difficulty Rogue Special Mode None Game No. 66 Rogue 66 Adventurer 0 Explorer 0 Win Type - Total 0 Types 0/0/0/0/0/0/0/0/0 Lore% 29 Gallery% 26 Achievement% 28 Wizard Run 0 Options --------- Layout 0 ASCII 0 Keyboard 0 Movement Mouse Keybinds 0 Fullscreen 1 Font 24/Smallcaps Map View 183x50 Zoom Use 69% Tactical HUD 1 Map Filters NONE Filters NONE Steam 1 RUN: e169b097-c2ef-474d-8d44-71a8cbb79699